[Event "Allsvenskan Div II 5 2022/2023: Molndals SK - Ostra Skaraborgsalliansen"]
[Site "Schackcentrum, Vegatan 20, Gothenburg, Sweden"]
[Date "2023.02.05"]
[Round "1.6"]
[White "Torell, Torsten"]
[Black "Thornqvist, Christer"]
[Result "1-0"]
[TimeControl "90 minutes for 40 moves + 30 minutes for the rest of the game + 30 seconds per move from move one."]
[WhiteFideId "1723839"]
[BlackFideId "1732250"]
[WhiteElo "1710"]
[BlackElo "1799"]

1. e4 {[%clk 01:30:16]} {[%emt 00:00:42]} c5 {[%clk 01:30:34]} {[%emt
00:00:27]} 2. Nf3 {[%clk 01:29:53]} {[%emt 00:00:50]} Nc6 {[%clk 01:30:42]}
{[%emt 00:00:25]} 3. d4 {[%clk 01:29:38]} {[%emt 00:00:44]} cxd4 {[%clk
01:30:59]} {[%emt 00:00:14]} 4. Nxd4 {[%clk 01:30:00]} {[%emt 00:00:08]} g6
{[%clk 01:31:10]} {[%emt 00:00:24]} 5. c4 {[%clk 01:28:11]} {[%emt 00:02:12]}
Nf6 {[%clk 01:31:22]} {[%emt 00:00:20]} 6. Nc3 {[%clk 01:27:46]} {[%emt
00:00:55]} d6 {[%clk 01:31:26]} {[%emt 00:00:26]} 7. Be2 {[%clk 01:25:08]}
{[%emt 00:03:08]} Bg7 {[%clk 01:31:21]} {[%emt 00:00:35]} 8. Be3 {[%clk
01:24:31]} {[%emt 00:01:03]} Ng4 {[%clk 01:18:02]} {[%emt 00:13:52]} 9. Bxg4
{[%clk 01:12:58]} {[%emt 00:12:02]} Bxg4 {[%clk 01:16:07]} {[%emt 00:02:27]} 10.
Nxc6 {[%clk 01:08:03]} {[%emt 00:05:24]} Bxd1 {[%clk 01:11:38]} {[%emt
00:04:59]} 11. Nxd8 {[%clk 01:06:09]} {[%emt 00:02:25]} Bg4 {[%clk 01:10:08]}
{[%emt 00:02:00]} 12. Nxb7 {[%clk 01:03:31]} {[%emt 00:03:08]} Rb8 {[%clk
01:10:21]} {[%emt 00:00:17]} 13. Na5 {[%clk 00:54:07]} {[%emt 00:09:53]} Rxb2
{[%clk 01:10:29]} {[%emt 00:00:23]} 14. Bd2 {[%clk 00:54:18]} {[%emt 00:00:19]}
Rc2 {[%clk 01:10:05]} {[%emt 00:00:54]} 15. f3 {[%clk 00:36:29]} {[%emt
00:18:19]} Be6 {[%clk 01:04:57]} {[%emt 00:05:38]} 16. Rb1 {[%clk 00:10:00]}
{[%emt 00:26:58]} Bxc3 {[%clk 01:02:33]} {[%emt 00:02:55]} 17. Bxc3 {[%clk
00:09:42]} {[%emt 00:00:48]} Rxc3 {[%clk 01:02:45]} {[%emt 00:00:18]} 18. Kd2
{[%clk 00:09:41]} {[%emt 00:00:31]} Ra3 {[%clk 01:02:32]} {[%emt 00:00:42]} 19.
Rb8+ {[%clk 00:09:39]} {[%emt 00:00:33]} Kd7 {[%clk 01:02:48]} {[%emt
00:00:14]} 20. Rxh8 {[%clk 00:09:41]} {[%emt 00:00:27]} Rxa2+ {[%clk 01:02:56]}
{[%emt 00:00:23]} 21. Kd3 {[%clk 00:09:17]} {[%emt 00:00:54]} Rxa5 {[%clk
01:03:18]} {[%emt 00:00:08]} 22. Rxh7 {[%clk 00:09:10]} {[%emt 00:00:37]} Ra3+
{[%clk 01:01:57]} {[%emt 00:01:51]} 23. Kd4 {[%clk 00:05:16]} {[%emt 00:04:23]}
Ra2 {[%clk 00:58:35]} {[%emt 00:03:53]} 24. Rg1 {[%clk 00:04:35]} {[%emt
00:01:11]} Rc2 {[%clk 00:58:47]} {[%emt 00:00:18]} 25. Ra1 {[%clk 00:03:03]}
{[%emt 00:02:00]} Rxc4+ {[%clk 00:59:07]} {[%emt 00:00:12]} 26. Ke3 {[%clk
00:03:04]} {[%emt 00:00:29]} Rc3+ {[%clk 00:58:32]} {[%emt 00:01:05]} 27. Kd2
{[%clk 00:03:12]} {[%emt 00:00:22]} Rc7 {[%clk 00:58:29]} {[%emt 00:00:33]} 28.
g4 {[%clk 00:03:09]} {[%emt 00:00:33]} g5 {[%clk 00:57:00]} {[%emt 00:01:59]}
29. h4 {[%clk 00:02:25]} {[%emt 00:01:14]} gxh4 {[%clk 00:57:21]} {[%emt
00:00:09]} 30. Rxh4 {[%clk 00:02:45]} {[%emt 00:00:09]} Bc4 {[%clk 00:53:49]}
{[%emt 00:04:03]} 31. f4 {[%clk 00:02:31]} {[%emt 00:00:44]} e5 {[%clk
00:51:15]} {[%emt 00:03:04]} 32. f5 {[%clk 00:01:57]} {[%emt 00:01:04]} d5
{[%clk 00:51:39]} {[%emt 00:00:07]} 33. exd5 {[%clk 00:01:49]} {[%emt
00:00:37]} Bxd5 {[%clk 00:52:07]} {[%emt 00:00:02]} 34. g5 {[%clk 00:01:39]}
{[%emt 00:00:39]} Ke7 {[%clk 00:51:18]} {[%emt 00:01:20]} 35. Kd3 {[%clk
00:00:50]} {[%emt 00:01:20]} Rd7 {[%clk 00:51:31]} {[%emt 00:00:17]} 36. Ke3
{[%clk 00:01:05]} {[%emt 00:00:14]} Rb7 {[%clk 00:51:23]} {[%emt 00:00:38]} 37.
Ra3 {[%clk 00:01:11]} {[%emt 00:00:24]} a5 {[%clk 00:50:00]} {[%emt 00:01:53]}
38. Rh7 {[%clk 00:01:09]} {[%emt 00:00:30]} Rb1 {[%clk 00:48:44]} {[%emt
00:01:48]} 39. Rxa5 {[%clk 00:01:11]} {[%emt 00:00:28]} Rb3+ {[%clk 00:48:32]}
{[%emt 00:00:42]} 40. Kd2 {[%clk 00:01:21]} {[%emt 00:00:19]} Kd6 {[%clk
00:48:41]} {[%emt 00:00:21]} 41. Rh6+ {[%clk 00:00:49]} {[%emt 00:01:02]} 1-0

[Event "Allsvenskan Div II 5 2022/2023: Molndals SK - Ostra Skaraborgsalliansen"]
[Site "Schackcentrum, Vegatan 20, Gothenburg, Sweden"]
[Date "2023.02.05"]
[Round "1.7"]
[White "Kringlund, Karl"]
[Black "Johansson, Filip"]
[Result "0-1"]
[TimeControl "90 minutes for 40 moves + 30 minutes for the rest of the game + 30 seconds per move from move one."]
[WhiteFideId "1769235"]
[BlackFideId "1714090"]
[WhiteElo "1235"]
[BlackElo "1620"]

1. d4 {[%clk 01:30:41]} {[%emt 00:00:19]} d5 {[%clk 01:30:51]} {[%emt
00:00:10]} 2. c4 {[%clk 01:31:02]} {[%emt 00:00:09]} e6 {[%clk 01:31:15]}
{[%emt 00:00:06]} 3. Nf3 {[%clk 01:31:18]} {[%emt 00:00:14]} c6 {[%clk
01:31:30]} {[%emt 00:00:16]} 4. e3 {[%clk 01:31:00]} {[%emt 00:00:47]} Nf6
{[%clk 01:31:32]} {[%emt 00:00:28]} 5. Nc3 {[%clk 01:31:01]} {[%emt 00:00:29]}
Bd6 {[%clk 01:31:42]} {[%emt 00:00:20]} 6. Bd3 {[%clk 01:30:06]} {[%emt
00:01:25]} Nbd7 {[%clk 01:29:10]} {[%emt 00:03:01]} 7. O-O {[%clk 01:29:53]}
{[%emt 00:00:43]} O-O {[%clk 01:28:33]} {[%emt 00:01:07]} 8. b3 {[%clk
01:27:16]} {[%emt 00:03:08]} e5 {[%clk 01:25:59]} {[%emt 00:03:03]} 9. dxe5
{[%clk 01:25:16]} {[%emt 00:02:31]} Nxe5 {[%clk 01:26:19]} {[%emt 00:00:09]} 10.
Nxe5 {[%clk 01:24:42]} {[%emt 00:01:04]} Bxe5 {[%clk 01:26:24]} {[%emt
00:00:25]} 11. Qc2 {[%clk 01:24:34]} {[%emt 00:00:38]} Bxh2+ {[%clk 01:17:09]}
{[%emt 00:09:45]} 12. Kh1 {[%clk 01:23:19]} {[%emt 00:01:46]} Be5 {[%clk
01:14:12]} {[%emt 00:03:27]} 13. g3 {[%clk 01:19:09]} {[%emt 00:04:40]} Qd7
{[%clk 01:10:51]} {[%emt 00:03:50]} 14. Bf5 {[%clk 01:17:53]} {[%emt 00:01:46]}
Qxf5 {[%clk 01:11:03]} {[%emt 00:00:18]} 15. Qxf5 {[%clk 01:16:54]} {[%emt
00:01:30]} Bxf5 {[%clk 01:11:25]} {[%emt 00:00:07]} 16. Bd2 {[%clk 01:16:02]}
{[%emt 00:01:22]} Ne4 {[%clk 01:10:42]} {[%emt 00:01:13]} 0-1

[Event "Allsvenskan Div II 5 2022/2023: Molndals SK - Ostra Skaraborgsalliansen"]
[Site "Schackcentrum, Vegatan 20, Gothenburg, Sweden"]
[Date "2023.02.05"]
[Round "1.8"]
[White "Hallqvist, Niklas"]
[Black "Ryefalk, Lucas"]
[Result "0-1"]
[TimeControl "90 minutes for 40 moves + 30 minutes for the rest of the game + 30 seconds per move from move one."]
[WhiteFideId "1723863"]
[BlackFideId "1769243"]
[WhiteElo "1544"]
[BlackElo "1518"]

1. c4 {[%clk 01:30:52]} {[%emt 00:00:08]} Nf6 {[%clk 01:30:51]} {[%emt
00:00:09]} 2. g3 {[%clk 01:31:08]} {[%emt 00:00:15]} g6 {[%clk 01:30:59]}
{[%emt 00:00:21]} 3. Bg2 {[%clk 01:31:32]} {[%emt 00:00:06]} Bg7 {[%clk
01:31:01]} {[%emt 00:00:28]} 4. Nc3 {[%clk 01:31:55]} {[%emt 00:00:07]} O-O
{[%clk 01:30:44]} {[%emt 00:00:47]} 5. Nf3 {[%clk 01:32:11]} {[%emt 00:00:14]}
d5 {[%clk 01:28:47]} {[%emt 00:02:27]} 6. cxd5 {[%clk 01:27:09]} {[%emt
00:05:32]} Nxd5 {[%clk 01:28:53]} {[%emt 00:00:24]} 7. O-O {[%clk 01:27:09]}
{[%emt 00:00:31]} c6 {[%clk 01:25:06]} {[%emt 00:04:17]} 8. d4 {[%clk
01:23:36]} {[%emt 00:04:02]} Re8 {[%clk 01:17:14]} {[%emt 00:08:23]} 9. Qb3
{[%clk 01:19:51]} {[%emt 00:04:15]} Nxc3 {[%clk 01:09:26]} {[%emt 00:08:18]} 10.
bxc3 {[%clk 01:18:51]} {[%emt 00:01:30]} Nd7 {[%clk 01:07:43]} {[%emt
00:02:13]} 11. e4 {[%clk 01:09:48]} {[%emt 00:09:32]} e5 {[%clk 01:04:55]}
{[%emt 00:03:18]} 12. Bg5 {[%clk 01:01:55]} {[%emt 00:08:23]} Qc7 {[%clk
01:03:34]} {[%emt 00:01:52]} 13. Rfe1 {[%clk 00:55:08]} {[%emt 00:07:16]} b6
{[%clk 01:01:18]} {[%emt 00:02:46]} 14. h4 {[%clk 00:52:08]} {[%emt 00:03:30]}
h6 {[%clk 00:58:10]} {[%emt 00:03:38]} 15. Be3 {[%clk 00:50:51]} {[%emt
00:01:47]} Bb7 {[%clk 00:56:50]} {[%emt 00:01:50]} 16. Bh3 {[%clk 00:49:42]}
{[%emt 00:01:39]} exd4 {[%clk 00:55:05]} {[%emt 00:02:15]} 17. Bxd7 {[%clk
00:46:38]} {[%emt 00:03:34]} Qxd7 {[%clk 00:54:33]} {[%emt 00:01:03]} 18. Rad1
{[%clk 00:46:49]} {[%emt 00:00:18]} c5 {[%clk 00:53:41]} {[%emt 00:01:22]} 19.
cxd4 {[%clk 00:46:17]} {[%emt 00:01:01]} Bxe4 {[%clk 00:52:49]} {[%emt
00:01:23]} 20. dxc5 {[%clk 00:44:53]} {[%emt 00:01:54]} Qb7 {[%clk 00:52:29]}
{[%emt 00:00:50]} 21. Nd2 {[%clk 00:35:47]} {[%emt 00:09:37]} Bh1 {[%clk
00:52:22]} {[%emt 00:00:36]} 22. f3 {[%clk 00:36:11]} {[%emt 00:00:06]} Bxf3
{[%clk 00:52:41]} {[%emt 00:00:11]} 23. Nxf3 {[%clk 00:36:37]} {[%emt
00:00:04]} Qxf3 {[%clk 00:52:57]} {[%emt 00:00:15]} 24. Rf1 {[%clk 00:37:03]}
{[%emt 00:00:04]} Qxg3+ {[%clk 00:52:47]} {[%emt 00:00:40]} 25. Kh1 {[%clk
00:37:27]} {[%emt 00:00:06]} Rxe3 {[%clk 00:52:23]} {[%emt 00:00:53]} 26. Qxf7+
{[%clk 00:37:46]} {[%emt 00:00:11]} Kh7 {[%clk 00:52:27]} {[%emt 00:00:27]} 27.
Rf2 {[%clk 00:31:12]} {[%emt 00:07:03]} Rf8 {[%clk 00:49:23]} {[%emt 00:03:33]}
28. Rg1 {[%clk 00:20:04]} {[%emt 00:11:39]} Qh3+ {[%clk 00:48:59]} {[%emt
00:00:54]} 29. Rh2 {[%clk 00:20:28]} {[%emt 00:00:06]} Qxh2+ {[%clk 00:49:02]}
{[%emt 00:00:28]} 0-1